bitfinex-derivatives/quotes_SOLF0:USTF0_20241222
["timestamp","ask_amount","ask_price","bid_price","bid_amount"]
[1734878293282,3.3147,181.17,181.09,4.54]
[1734878293486,4.54,181.22,181.09,4.54]
[1734878293680,6.6446,181.21,181.09,4.54]
[1734878294388,3.3147,181.21,181.1,3.3293]
[1734878294589,2.7599,181.27,181.18,2.7611]
[1734878294794,9.9265,181.32,181.18,4.54]
[1734878295085,9.9265,181.32,181.11,3.3587]
[1734878295288,1.0,181.26,180.96,1.9521]
[1734878295592,2.7616,181.15,181.05,2.763]
[1734878295784,4.54,181.25,181.04,4.54]
[1734878295985,4.54,181.24,181.04,4.54]
[1734878296190,3.3299,181.23,181.04,4.54]
[1734878297090,3.3299,181.23,181.05,3.4037]
[1734878297391,2.761,181.2,181.11,2.7622]
[1734878297591,2.761,181.2,181.1,2.03101306]
[1734878297799,3.3299,181.23,181.1,2.03101306]
[1734878298190,3.3299,181.23,181.1,4.79331306]
[1734878298596,2.7609,181.2,181.11,2.7622]
[1734878298895,3.3299,181.23,181.1,2.03101306]
[1734878299794,2.7606,181.22,181.1,2.03101306]
[1734878299995,4.54,181.22,181.06,3.375]
[1734878300297,2.761,181.19,181.09,2.7625]
[1734878300492,6.8066,181.21,181.06,7.915]
[1734878300692,1.0,181.22,181.06,7.915]
[1734878300898,1.0,181.22,181.07,1.989]
[1734878301091,6.5927,181.33,181.07,1.989]
[1734878301400,2.7593,181.31,181.07,1.989]
[1734878301588,10.0486,181.33,181.07,1.989]
[1734878301791,10.0486,181.33,181.08,2.11916504]
[1734878302086,2.7594,181.3,181.08,2.11916504]
[1734878302288,10.0486,181.33,181.09,1.01468084]
[1734878302486,1.0,181.32,181.08,1.1044842]
[1734878302687,10.0486,181.33,181.09,4.9]
[1734878302891,5.16,181.32,181.06,3.375]
[1734878303088,1.0,181.29,181.03,4.9]
[1734878303687,63.18,181.28,181.03,4.9]
[1734878304199,5.8,181.27,181.03,4.9]
[1734878304394,6.8,181.27,181.03,4.9]
[1734878305395,2.7608,181.21,181.1,2.7623]
[1734878305595,6.8,181.27,181.03,4.9]
[1734878305893,1.0,181.27,181.04,1.01500566]
[1734878306090,1.0,181.27,181.12,2.762]
[1734878306292,1.0,181.27,181.05,5.1437]
[1734878306492,1.0,181.27,181.06,10.12472025]
[1734878306698,2.7606,181.22,181.11,2.7621]
[1734878306898,3.126,181.21,181.06,9.1097]
[1734878307093,3.126,181.21,181.07,1.01497857]
[1734878307397,1.0,181.27,181.07,1.01497857]
[1734878308298,1.0,181.27,181.08,1.01470947]
[1734878308692,1.0,181.27,181.09,1.01470947]
[1734878308898,1.0,181.27,181.06,9.1097]
[1734878309098,1.0,181.27,181.1,1.01469797]
[1734878309397,1.0,181.27,181.18,2.7611]
[1734878309802,1.0,181.27,181.17,6.16]
[1734878310000,3.4595,181.32,181.17,6.16]
[1734878310200,3.4559,181.33,181.18,8.7233]
[1734878310503,6.16,181.44,181.19,1.01424849]
[1734878310704,2.7583,181.37,181.25,2.76]
[1734878310906,2.7583,181.37,181.25,8.92]
[1734878311605,2.7583,181.37,181.18,8.7233]
[1734878311606,2.7591,181.32,181.19,8.9209]
[1734878311799,2.7591,181.32,181.2,1.01420071]
[1734878312308,6.0277,181.35,181.21,1.01417079]
[1734878312510,6.0277,181.35,181.2,1.01417594]
[1734878312805,3.269,181.35,181.19,6.16]
[1734878313203,3.269,181.35,181.2,1.01417684]
[1734878313398,3.3553,181.43,181.21,1.01414783]
[1734878313598,3.3553,181.43,181.19,6.16]
[1734878313599,3.2239,181.42,181.3,2.7593]
[1734878313805,3.2239,181.42,181.3,8.9193]
[1734878314009,3.2239,181.42,181.3,6.16]
[1734878314209,3.3553,181.43,181.31,6.7108]
[1734878314416,3.3553,181.43,181.31,3.2931]
[1734878314709,2.7576,181.42,181.31,3.2931]
[1734878314909,3.3553,181.43,181.3,6.16]
[1734878315110,3.3957,181.41,181.3,6.16]
[1734878316110,3.3957,181.41,181.22,6.16]
[1734878316308,1.0,181.4,181.22,6.16]
[1734878316711,3.1506,181.39,181.16,6.16]
[1734878317212,3.1506,181.39,181.14,6.16]
[1734878317412,1.0,181.38,181.14,6.16]
[1734878317607,2.7591,181.32,181.15,1.01448901]
[1734878317809,6.5077,181.31,181.15,1.01448901]
[1734878318513,2.7594,181.3,181.14,6.00307133]
[1734878319216,2.7596,181.29,181.16,2.7614]
[1734878319515,6.5077,181.31,181.14,6.00307133]
[1734878319706,1.0,181.29,181.16,2.7614]
[1734878319914,1.0,181.29,181.09,6.14]
[1734878320111,3.1694,181.28,181.1,1.01457311]
[1734878320311,3.1694,181.28,181.16,2.7614]
[1734878320511,3.1694,181.28,181.09,6.14]
[1734878320915,3.1694,181.28,181.17,2.7612]
[1734878321416,3.1694,181.28,181.16,6.14]
[1734878322008,5.9291,181.28,181.17,2.7613]
[1734878323115,3.1694,181.28,181.16,6.14]
[1734878323315,3.1694,181.28,181.04,6.4742]
[1734878323517,2.7604,181.24,181.13,6.16]
[1734878324008,1.0,181.27,181.14,6.16]
[1734878324813,1.0,181.27,181.15,3.4344]
[1734878325315,1.0,181.27,181.2,2.7607]
[1734878325714,1.0,181.27,181.16,3.2749]
[1734878326017,1.0,181.27,181.16,6.14]
[1734878326418,1.0,181.27,181.2,2.7608]
[1734878327117,1.0,181.27,181.16,6.14]
[1734878327414,6.6114,181.37,181.24,2.7601]
[1734878327617,6.6114,181.37,181.18,3.2749]
[1734878328118,1.0,181.36,181.23,2.7604]
[1734878328318,1.0,181.36,181.18,3.2749]
[1734878328517,2.7596,181.29,181.18,3.2749]
[1734878328712,2.7596,181.29,181.22,2.7605]
[1734878328917,1.0,181.36,181.22,2.7605]
[1734878329112,2.759,181.32,181.18,3.2749]
[1734878329319,1.0,181.36,181.18,3.2749]
[1734878329722,1.0,181.36,181.19,1.01426315]
[1734878330021,2.759,181.33,181.25,2.7601]
[1734878330221,1.0,181.36,181.25,2.7601]
[1734878330424,1.0,181.36,181.24,5.86]
[1734878330625,3.3997,181.37,181.24,5.86]
[1734878330917,3.1764,181.39,181.25,4.21133864]
[1734878331118,3.1764,181.39,181.34,2.7587]
[1734878331321,3.256,181.43,181.32,5.86]
[1734878331721,3.256,181.43,181.37,2.7581]
[1734878331917,3.256,181.43,181.32,5.86]
[1734878332722,3.256,181.43,181.38,2.7581]
[1734878333122,3.3236,181.46,181.39,2.7578]
[1734878333322,3.3236,181.46,181.32,5.86]
[1734878333719,3.3236,181.46,181.39,2.7578]
[1734878333917,3.3236,181.46,181.32,5.86]
[1734878335424,3.3236,181.46,181.25,3.1974]
[1734878335621,1.0,181.45,181.22,5.86]
[1734878335922,1.0,181.45,181.23,3.4161]
[1734878336118,1.0,181.45,181.23,4.4299663]
[1734878336324,1.0,181.45,181.24,1.0138663]
[1734878336618,1.0,181.45,181.23,3.4161]
[1734878337528,1.0,181.45,181.3,2.7593]
[1734878337825,1.0,181.45,181.24,5.86]
[1734878338018,3.7571,181.45,181.31,2.7592]
[1734878338223,1.0,181.45,181.32,9.3162]
[1734878338723,2.7576,181.42,181.32,12.0751]
[1734878338917,1.0,181.45,181.32,9.3162]
[1734878339124,1.0,181.45,181.33,5.86]
[1734878339517,2.7578,181.41,181.33,8.6187]
[1734878339919,1.0,181.45,181.33,5.86]
[1734878340628,5.86,181.44,181.23,5.86]
[1734878340818,1.0,181.4,181.23,5.86]
[1734878341222,3.171,181.39,181.23,5.86]
[1734878341418,2.7583,181.37,181.23,5.86]
[1734878341620,3.2834,181.38,181.23,5.86]
[1734878342129,3.2834,181.38,181.24,1.01380962]
[1734878342330,3.2834,181.38,181.23,5.86]
[1734878342524,3.2834,181.38,181.24,1.01379453]
[1734878342822,3.2834,181.38,181.23,5.86]
[1734878343220,2.7586,181.35,181.27,2.7598]
[1734878343425,3.2834,181.38,181.19,5.3324]
[1734878343627,3.2069,181.34,181.23,2.7602]
[1734878344131,2.7603,181.24,181.14,76.74585906]
[1734878344331,3.2069,181.34,181.13,66.41387272]
[1734878344531,3.2069,181.34,181.14,1.01438849]
[1734878344838,2.7596,181.29,181.14,1.01438849]
[1734878345024,3.2069,181.34,181.13,5.86]
[1734878345326,1.0,181.33,181.13,5.86]
[1734878345536,1.0,181.33,181.14,1.01448039]
[1734878345933,1.0,181.33,181.15,5.86]
[1734878346432,1.0,181.33,181.17,2.7612]
[1734878346630,1.0,181.33,181.15,5.86]
[1734878346830,2.7606,181.22,181.16,2.7614]
[1734878347034,2.7606,181.22,181.12,63.1]
[1734878347035,1.0,181.33,181.12,68.96]
[1734878347337,2.7596,181.29,181.18,2.7611]
[1734878347634,2.7596,181.29,181.12,68.96]
[1734878347838,1.0,181.33,181.12,68.96]
[1734878348036,2.7598,181.27,181.2,2.7607]
[1734878348529,2.7596,181.28,181.21,2.7607]
[1734878348930,2.7592,181.31,181.18,2.7611]
[1734878349230,1.0,181.33,181.12,68.96]
[1734878349436,1.0,181.33,181.13,1.01419111]
[1734878350133,1.0,181.33,181.17,2.7613]
[1734878350337,1.0,181.33,181.12,5.86]
[1734878350836,2.7598,181.27,181.13,3.1946]
[1734878351032,1.0,181.33,181.13,3.1946]
[1734878351236,2.7595,181.29,181.21,2.7606]
[1734878352137,2.7594,181.3,181.23,2.7603]
[1734878352434,1.0,181.33,181.19,5.58]
[1734878352833,9.0669,181.34,181.19,5.58]
[1734878353032,1.0,181.29,181.19,5.58]
[1734878354337,1.0,181.29,181.22,2.7605]
[1734878354536,1.0,181.29,181.19,5.58]
[1734878355233,6.8117,181.28,181.14,5.58]
[1734878355433,6.8117,181.28,181.18,2.7611]
[1734878355737,6.8117,181.28,181.14,5.58]
[1734878356235,6.8117,181.28,181.15,5.58]
[1734878357234,9.5714,181.28,181.2,2.7607]
[1734878357430,6.8117,181.28,181.15,5.58]
[1734878357832,2.7604,181.24,181.13,5.58]
[1734878358038,6.8117,181.28,181.13,5.58]
[1734878358331,1.0,181.27,181.17,2.7613]
[1734878358536,3.2069,181.34,181.13,5.58]
[1734878358732,3.2069,181.34,181.14,1.01420101]
[1734878359331,2.7592,181.31,181.24,2.7601]
[1734878359636,3.2069,181.34,181.11,1.0579]
[1734878359833,5.58,181.33,181.16,2.7614]
[1734878360138,1.0,181.3,181.1,3.1859]
[1734878360635,2.76,181.26,181.1,3.1859]
[1734878360837,3.3283,181.29,181.1,3.1859]
[1734878361028,2.7599,181.27,181.19,2.7609]
[1734878361337,3.3283,181.29,181.16,5.58]
[1734878361537,3.3283,181.29,181.2,2.7607]
[1734878361538,2.7599,181.26,181.2,2.7607]
[1734878361737,3.3283,181.29,181.2,2.7607]
[1734878361937,3.3283,181.29,181.17,5.58]
[1734878362132,2.7601,181.25,181.18,2.761]
[1734878362340,2.7601,181.25,181.08,1.0362]
[1734878362341,3.3283,181.29,181.01,229.47570684]
[1734878362635,2.7609,181.2,181.13,2.7619]
[1734878362939,6.5644,181.24,181.06,5.58]
[1734878363139,6.5644,181.24,181.08,1.01468023]
[1734878363340,6.5644,181.24,181.17,2.7613]
[1734878364534,9.3246,181.24,181.17,2.7613]
[1734878364733,6.5644,181.24,181.15,2.7615]
[1734878364931,6.5644,181.24,181.13,5.58]
[1734878365140,6.5644,181.24,181.07,6.6845452]
[1734878365438,1.0,181.23,181.07,1.1045452]
[1734878365940,1.0,181.23,181.08,2.7627]
[1734878366339,1.0,181.23,181.04,5.58]
[1734878366639,1.0,181.23,181.02,68.7]
[1734878366839,1.0,181.23,181.03,1.01482269]
[1734878367040,1.0,181.23,181.05,2.7631]
[1734878367243,1.0,181.23,181.0,5.58]
[1734878367542,1.0,181.23,181.05,2.7631]
[1734878367733,2.7629,181.07,180.96,5.58]
[1734878367934,5.58,181.13,180.96,5.58]
[1734878368140,9.8542,181.12,180.96,5.58]
[1734878368643,10.8542,181.12,180.95,60.55387272]
[1734878368838,10.8542,181.12,180.94,5.58]
[1734878369347,10.8542,181.12,180.89,60.55387272]
[1734878369542,2.7642,180.98,180.91,2.7652]
[1734878369939,2.7642,180.98,180.89,60.55387272]
[1734878370249,3.1898,181.02,180.89,60.55387272]
[1734878370446,3.1898,181.02,180.83,5.58]
[1734878370744,2.7651,180.92,180.86,2.7659]
[1734878371342,2.7651,180.92,180.81,5.58]
[1734878371747,2.7653,180.91,180.81,5.58]
[1734878371942,5.58,180.96,180.79,1.0416]
[1734878372138,5.58,180.96,180.78,68.74]
[1734878372139,5.58,180.96,180.78,5.58]
[1734878372344,1.0,180.91,180.78,5.58]
[1734878372545,6.6205,180.9,180.78,5.58]
[1734878372843,6.6205,180.9,180.67,1.9992]
[1734878373051,8.8117,180.89,180.68,6.59687758]
[1734878373242,8.8117,180.89,180.69,1.01687758]
[1734878373443,3.2317,180.89,180.69,1.01687758]
[1734878373644,5.58,180.97,180.69,2.12374569]
[1734878373943,89.74342129,180.98,180.7,1.01687758]
[1734878374250,89.74342129,180.98,180.71,1.10674561]
[1734878374446,2.7637,181.02,180.72,260.01687758]
[1734878374747,9.9066,181.03,180.89,2.7655]
[1734878374948,9.9066,181.03,180.86,5.58]
[1734878375346,9.9066,181.03,180.89,2.7655]
[1734878375543,9.9066,181.03,180.86,5.58]
[1734878375846,3.7637,181.02,180.91,2.7652]
[1734878376148,1.0,181.02,180.87,1.0509]
[1734878376349,1.0,181.02,180.73,1.10662313]
[1734878376549,1.0,181.02,180.85,2.7662]
[1734878376752,1.0,181.02,180.83,5.58]
[1734878376951,2.7647,180.95,180.85,2.7662]
[1734878377153,5.58,180.99,180.85,2.7662]
[1734878377341,5.58,180.99,180.83,5.58]
[1734878377853,1.0,180.98,180.83,5.58]
[1734878378054,2.7647,180.95,180.86,2.766]
[1734878378253,1.0,180.98,180.8,5.58]
[1734878379153,2.7652,180.92,180.8,5.58]
[1734878379354,1.0,180.98,180.8,5.58]
[1734878379750,2.7647,180.95,180.8,5.58]
[1734878380048,1.0,180.98,180.81,5.477]
[1734878381157,1.0,180.98,180.82,1.01626291]
[1734878381350,3.7642,180.98,180.86,2.7659]
[1734878381553,1.0,180.98,180.83,1.0509]
[1734878381948,1.0,180.98,180.84,1.01619912]
[1734878382257,1.0,180.98,180.83,1.0509]
[1734878382656,1.0,180.98,180.89,2.7656]
[1734878382851,1.0,180.98,180.87,5.36]
[1734878383459,9.9066,181.03,180.87,5.36]
[1734878383651,9.9066,181.03,180.88,1.01593428]
[1734878383857,2.7629,181.07,180.97,2.7642]
[1734878384057,5.36,181.11,180.94,5.36]
[1734878384253,9.8139,181.15,180.94,5.36]
[1734878384254,15.1739,181.15,180.94,5.36]
[1734878384561,15.1739,181.15,180.95,4.2644]
[1734878384759,1.0,181.14,180.95,6.2709]
[1734878385560,2.7624,181.1,181.01,2.7637]
[1734878386462,1.0,181.14,180.95,6.2709]
[1734878386758,15.1739,181.15,180.95,4.2644]
[1734878386954,1.0,181.09,180.95,4.2644]
[1734878387150,1.0,181.09,180.95,1.0491]
[1734878387761,5.36,181.08,180.94,2.7647]
[1734878388257,5.36,181.08,180.9,2.7653]
[1734878388455,5.36,181.08,180.86,0.9878]
[1734878388657,1.0,181.07,180.86,6.3478]
[1734878389161,2.7643,180.98,180.91,2.7653]
[1734878390462,2.7644,180.97,180.9,2.7654]
[1734878390650,5.36,181.01,180.8,76.89920913]
[1734878390850,6.5905,180.96,180.82,68.58]
[1734878391055,2.7648,180.95,180.82,63.22]
[1734878391261,2.7648,180.95,180.84,5.36]
[1734878391452,6.5905,180.96,180.84,5.36]
[1734878391659,6.5905,180.96,180.85,2.7662]
[1734878391858,3.1133,180.95,180.78,5.36]
[1734878392156,1.0,180.94,180.78,5.36]
[1734878393163,2.7652,180.92,180.85,2.766]
[1734878393365,1.0,180.94,180.78,5.36]
[1734878394160,1.0,180.94,180.84,0.9892]
[1734878394360,1.0,180.94,180.85,5.36]
[1734878394555,3.1376,181.05,180.85,5.36]
[1734878394760,3.4371,181.04,180.86,6.40998744]
[1734878394961,2.7639,181.01,180.93,2.765]
[1734878395162,4.4371,181.04,180.86,5.3939]
[1734878395657,4.4371,181.04,180.87,1.01593256]
[1734878396066,7.2004,181.04,180.96,2.7645]
[1734878396274,7.2004,181.04,180.93,5.36]
[1734878396764,1.0,181.04,180.94,5.08]
[1734878396969,1.0,181.04,180.95,6.0746]
[1734878397167,3.4269,181.15,180.95,6.0746]
[1734878397473,3.1619,181.14,180.96,6.38485114]
[1734878397767,3.1619,181.14,180.96,5.3693]
[1734878398169,3.1619,181.14,180.97,1.01548733]
[1734878398370,3.1619,181.14,180.96,5.3693]
[1734878398770,5.08,181.13,180.95,5.08]
[1734878399161,6.08,181.13,180.95,5.08]
[1734878399465,6.08,181.13,180.88,6.3602]
[1734878399663,6.08,181.13,180.89,5.08]
[1734878399866,2.763,181.06,180.91,2.7653]
[1734878400071,11.7511,181.05,180.91,2.7653]
[1734878400368,3.4277,181.04,180.91,2.7653]
[1734878400569,3.4277,181.04,180.92,2.7651]
[1734878400865,3.4277,181.04,180.89,5.08]
[1734878401064,3.4277,181.04,180.9,2.7653]
[1734878401270,1.0,181.03,180.89,5.08]
[1734878402970,1.0,181.03,180.84,5.08]
[1734878403368,1.0,181.03,180.83,3.4599008]
[1734878403669,1.0,181.03,180.77,3.3582]
[1734878403670,1.0,181.03,180.79,5.08]
[1734878403873,2.7646,180.96,180.82,2.7665]
[1734878404073,11.7428,180.95,180.79,5.08]
[1734878404272,8.4454,180.94,180.79,5.08]
[1734878404469,2.7658,180.88,180.81,2.7667]
[1734878404663,8.4454,180.94,180.81,2.7667]
[1734878405368,8.4454,180.94,180.72,63.22]
[1734878405671,25.0654,180.94,180.72,5.08]
[1734878406084,41.6454,180.94,180.62,60.55387272]
[1734878406374,16.62,180.92,180.62,60.55387272]
[1734878406573,16.62,180.92,180.67,5.08]
[1734878406872,8.4454,180.94,180.67,5.08]
[1734878406873,19.9854,180.94,180.67,5.08]
[1734878407072,1.0,180.91,180.67,5.08]
[1734878407374,1.0,180.91,180.71,5.08]
[1734878407773,1.0,180.91,180.64,5.08]
[1734878408169,1.0,180.91,180.61,4.2924]
[1734878408373,1.0,180.91,180.69,5.08]
[1734878408574,1.0,180.91,180.7,1.01690361]
[1734878408774,2.766,180.87,180.8,2.7669]
[1734878408971,2.766,180.87,180.7,2.00880361]
[1734878408972,1.0,180.91,180.71,5.3855]
[1734878409172,5.08,180.93,180.71,5.3855]
[1734878409472,1.0,180.86,180.81,2.7667]
[1734878409675,1.0,180.86,180.77,5.08]
[1734878409974,3.3654,180.94,180.77,5.08]
[1734878410177,34.01596902,181.02,180.77,5.08]
[1734878410381,2.7647,180.95,180.86,2.7659]
[1734878410576,6.747,181.0,180.84,5.08]
[1734878410774,6.747,181.0,180.71,5.3855]
[1734878410974,1.0,180.94,180.72,6.09657663]
[1734878411176,5.08,180.93,180.73,5.08]
[1734878411370,3.1124,180.92,180.73,5.08]
[1734878411977,1.0,180.91,180.74,2.7677]
[1734878412276,1.0,180.91,180.73,5.08]
[1734878412483,2.7664,180.84,180.76,2.7676]
[1734878412781,6.6852,180.9,180.76,2.7676]
[1734878412978,6.6852,180.9,180.73,5.08]
[1734878413378,1.0,180.83,180.71,3.4389]
[1734878413578,2.7668,180.81,180.75,2.7677]
[1734878413780,1.0,180.83,180.64,3.3665]
[1734878414082,3.2266,180.8,180.65,5.08]
[1734878414679,3.186,180.79,180.65,5.08]
[1734878415372,2.7676,180.76,180.65,5.08]
[1734878415577,3.186,180.79,180.64,4.3648]
[1734878415875,3.186,180.79,180.65,5.08]
[1734878416384,3.3861,180.82,180.65,5.08]
[1734878416777,1.0,180.83,180.65,5.08]
[1734878417085,1.0,180.83,180.66,1.01706662]
[1734878417886,3.7665,180.83,180.75,2.7676]
[1734878418082,1.0,180.83,180.76,4.82]
[1734878418283,4.82,180.91,180.76,4.82]
[1734878418477,2.7656,180.89,180.81,2.7667]
[1734878418680,4.82,180.88,180.67,4.82]
[1734878419687,38.02,180.88,180.58,3.0303]
[1734878419878,38.02,180.88,180.59,1.01729234]
[1734878420079,33.2,180.85,180.59,1.01729234]
[1734878420285,2.7697,180.62,180.59,1.01729234]
[1734878420479,4.82,180.66,180.53,60.55387272]
[1734878420686,3.2338,180.61,180.53,60.55387272]
[1734878420886,3.2338,180.61,180.47,2.25614609]
[1734878421484,2.77,180.6,180.49,2.7716]
[1734878421884,3.2338,180.61,180.49,2.7716]
[1734878422083,2.7701,180.6,180.49,2.7716]
[1734878422292,3.2338,180.61,180.47,2.25614609]
[1734878423192,6.0037,180.61,180.47,2.25614609]
[1734878423391,3.2338,180.61,180.49,2.7716]
[1734878423591,3.2338,180.61,180.47,2.25614609]
[1734878423895,5.82,180.6,180.47,2.25614609]
[1734878424391,1.0,180.6,180.43,3.4622]
[1734878424792,1.0,180.6,180.54,2.7709]
[1734878425091,1.0,180.6,180.43,3.4622]
[1734878425493,1.0,180.6,180.44,4.82]
[1734878425693,3.4175,180.64,180.45,4.82]
[1734878425892,3.4175,180.64,180.46,1.0369]
[1734878426295,3.4175,180.64,180.47,4.82]
[1734878426494,3.4175,180.64,180.54,2.7708]
[1734878426693,3.4175,180.64,180.46,1.0369]
[1734878426992,1.0,180.63,180.46,1.0369]
[1734878427994,2.7702,180.59,180.51,2.7713]
[1734878428290,1.0,180.63,180.47,4.82]
[1734878428492,2.7697,180.62,180.54,2.7709]
[1734878428696,1.0,180.63,180.54,2.7709]
[1734878428996,1.0,180.63,180.49,4.82]
[1734878429497,4.82,180.69,180.49,4.82]
[1734878429704,4.82,180.68,180.55,2.7708]
[1734878429896,3.2643,180.67,180.49,4.82]
[1734878430293,2.7693,180.65,180.56,2.7705]
[1734878430498,3.1708,180.66,180.49,4.82]
[1734878430801,4.82,180.68,180.49,4.82]
[1734878430987,4.82,180.69,180.49,4.82]
[1734878431387,6.4932,180.75,180.5,1.01791909]
[1734878431794,6.4932,180.75,180.51,64.44797185]
[1734878431993,4.82,180.81,180.52,1.017552]
[1734878432300,2.7672,180.79,180.7,2.7684]
[1734878432493,4.82,180.81,180.61,4.82]
[1734878432998,1.0,180.8,180.61,4.82]
[1734878433193,1.0,180.8,180.56,4.82]
[1734878433799,17.58,180.8,180.56,4.82]
[1734878433995,1.0,180.8,180.56,4.82]
[1734878434195,1.0,180.8,180.53,1.10784911]
[1734878434395,1.0,180.8,180.52,4.82]
[1734878434603,1.0,180.8,180.51,3.2998]
[1734878434793,2.769,180.67,180.61,2.7698]
[1734878435099,2.769,180.67,180.52,4.82]
[1734878435296,4.82,180.7,180.5,3.46624022]
[1734878435494,14.8611,180.69,180.52,2.0004]
[1734878435897,14.8611,180.69,180.61,2.7698]
[1734878436090,14.8611,180.69,180.53,4.82]
[1734878436091,10.0411,180.69,180.53,4.82]
[1734878436291,2.7683,180.72,180.64,2.7693]
[1734878436496,1.0,180.69,180.64,2.7693]
[1734878437500,1.0,180.69,180.5,3.46624022]
[1734878437696,1.0,180.69,180.54,3.0442]
[1734878437995,2.7691,180.67,180.59,2.77]
[1734878438398,2.7692,180.66,180.54,3.0442]
[1734878438599,9.7701,180.68,180.58,2.7702]
[1734878438903,4.82,180.67,180.52,3.358]
[1734878439099,1.0,180.66,180.52,3.358]
[1734878440801,1.0,180.66,180.59,2.77]
[1734878441604,1.0,180.66,180.56,4.82]
[1734878441800,4.56,180.75,180.57,3.0535]
[1734878442000,3.3673,180.74,180.59,2.7702]
[1734878442205,3.3673,180.74,180.52,3.358]
[1734878442600,2.7697,180.63,180.55,2.7708]
[1734878442805,3.3673,180.74,180.5,8.02624022]
[1734878442806,4.56,180.65,180.5,8.02624022]
[1734878443105,10.0732,180.64,180.5,8.02624022]
[1734878443801,10.0732,180.64,180.5,3.46624022]
[1734878444101,10.0732,180.64,180.48,2.7718]
[1734878444298,26.6932,180.64,180.35,73.41529284]
[1734878444498,2.7722,180.46,180.38,2.7734]
[1734878444704,3.3954,180.45,180.35,73.41529284]
[1734878444999,10.1615,180.45,180.35,73.41529284]
[1734878445602,1.0,180.44,180.35,73.41529284]
[1734878445904,5.58,180.44,180.28,4.56]
[1734878446112,5.58,180.44,180.29,4.58]
[1734878446300,1.0,180.44,180.29,4.58]
[1734878446500,1.0,180.44,180.3,1.01904427]
[1734878446806,1.0,180.44,180.37,2.7735]
[1734878447208,1.0,180.44,180.29,4.58]
[1734878447407,1.0,180.44,180.3,1.01898194]
[1734878447801,1.0,180.44,180.36,2.7737]
[1734878448003,1.0,180.44,180.29,4.58]
[1734878448200,4.58,180.5,180.3,1.0189592]
[1734878448406,2.7717,180.49,180.39,2.7731]
[1734878448610,4.58,180.5,180.35,4.58]
[1734878448808,4.58,180.5,180.36,4.306]
[1734878449008,4.58,180.5,180.39,2.7731]
[1734878449310,6.4201,180.53,180.36,4.306]
[1734878449608,7.3513,180.52,180.36,4.306]
[1734878449809,7.3513,180.52,180.36,6.3245]
[1734878450007,4.58,180.52,180.36,6.3245]
[1734878450510,2.7714,180.51,180.42,2.7728]
[1734878450701,6.4201,180.53,180.36,6.3245]
[1734878450903,63.38,180.66,180.36,6.3245]
[1734878451208,63.38,180.66,180.37,1.01869751]
[1734878451209,14.7111,180.65,180.37,1.01869751]
[1734878451406,14.7111,180.65,180.38,4.58]
[1734878451611,2.7697,180.63,180.54,2.7709]